[Event "January 9 Late 2024"]
[Site "https://www.chess.com"]
[Date "2024.01.09"]
[Round "5"]
[White "Lobanov, Sergei"]
[Black "Tissir, Mohamed"]
[Result "1-0"]
[Board "81"]
[TimeControl "180+1"]
[WhiteFideId "24183750"]
[BlackFideId "9000240"]
[WhiteElo "2829"]
[BlackElo "2519"]
[WhiteTeam "FID"]
[BlackTeam "MAR"]
[WhiteClock "0:02:05"]
[BlackClock "0:00:04"]

1. c4 {[%clk 0:03:00]}  Nf6 {[%clk 0:02:58]} 2. g3 {[%clk 0:03:01]}  g6 {[%clk 0:02:58]} 3. Bg2 {[%clk 0:03:02]}  Bg7 {[%clk 0:02:59]} 4. Nf3 {[%clk 0:03:02]}  O-O {[%clk 0:03:00]} 5. O-O {[%clk 0:03:02]}  d6 {[%clk 0:03:00]} 6. d4 {[%clk 0:03:02]}  a6 {[%clk 0:03:00]} 7. Nc3 {[%clk 0:03:03]}  Nc6 {[%clk 0:03:01]} 8. e4 {[%clk 0:03:02]}  Bg4 {[%clk 0:03:00]} 9. Be3 {[%clk 0:03:01]}  Nd7 {[%clk 0:03:00]} 10. Ne2 {[%clk 0:02:54]}  e5 {[%clk 0:02:50]} 11. d5 {[%clk 0:02:55]}  Ne7 {[%clk 0:02:22]} 12. Nd2 {[%clk 0:02:55]}  Bxe2 {[%clk 0:02:20]} 13. Qxe2 {[%clk 0:02:55]}  f5 {[%clk 0:02:20]} 14. f3 {[%clk 0:02:56]}  f4 {[%clk 0:02:20]} 15. Bf2 {[%clk 0:02:56]}  h5 {[%clk 0:02:18]} 16. Bh3 {[%clk 0:02:52]}  fxg3 {[%clk 0:02:07]} 17. hxg3 {[%clk 0:02:51]}  Nf6 {[%clk 0:01:59]} 18. c5 {[%clk 0:02:50]}  g5 {[%clk 0:01:46]} 19. Be6+ {[%clk 0:02:48]}  Kh7 {[%clk 0:01:42]} 20. Nc4 {[%clk 0:02:49]}  Ng6 {[%clk 0:01:31]} 21. Ne3 {[%clk 0:02:26]}  g4 {[%clk 0:01:21]} 22. Nf5 {[%clk 0:02:13]}  gxf3 {[%clk 0:01:17]} 23. Qxf3 {[%clk 0:02:13]}  Ng4 {[%clk 0:01:09]} 24. Be3 {[%clk 0:02:13]}  Rf6 {[%clk 0:00:11]} 25. Qh1 {[%clk 0:02:05]}  h4 {[%clk 0:00:09]} 26. Qf3 {[%clk 0:02:05]}  Nxe3 {[%clk 0:00:04]} 27. Qh5+ {[%clk 0:02:05]} 1-0

[Event "January 9 Late 2024"]
[Site "https://www.chess.com"]
[Date "2024.01.09"]
[Round "5"]
[White "Lagarde, Maxime"]
[Black "Avramidou, Anastasia"]
[Result "1-0"]
[Board "82"]
[TimeControl "180+1"]
[WhiteFideId "662399"]
[BlackFideId "4239873"]
[WhiteElo "2828"]
[BlackElo "2518"]
[WhiteTeam "FRA"]
[BlackTeam "GRE"]
[WhiteClock "0:00:48"]
[BlackClock "0:00:02"]

1. d4 {[%clk 0:03:00]}  Nf6 {[%clk 0:02:59]} 2. c4 {[%clk 0:03:00]}  g6 {[%clk 0:02:58]} 3. Nc3 {[%clk 0:02:58]}  Bg7 {[%clk 0:02:58]} 4. e4 {[%clk 0:02:59]}  d6 {[%clk 0:02:59]} 5. h3 {[%clk 0:02:58]}  c5 {[%clk 0:02:58]} 6. d5 {[%clk 0:02:56]}  O-O {[%clk 0:02:58]} 7. Bd3 {[%clk 0:02:56]}  e6 {[%clk 0:02:58]} 8. Nge2 {[%clk 0:02:56]}  exd5 {[%clk 0:02:59]} 9. exd5 {[%clk 0:02:56]}  Nbd7 {[%clk 0:02:57]} 10. Bg5 {[%clk 0:02:56]}  Ne5 {[%clk 0:02:56]} 11. O-O {[%clk 0:02:53]}  h6 {[%clk 0:02:52]} 12. Bf4 {[%clk 0:02:50]}  Re8 {[%clk 0:02:48]} 13. Rc1 {[%clk 0:02:43]}  a6 {[%clk 0:02:31]} 14. Ng3 {[%clk 0:02:23]}  Bd7 {[%clk 0:02:00]} 15. Be2 {[%clk 0:02:17]}  Rb8 {[%clk 0:01:38]} 16. Qd2 {[%clk 0:02:08]}  g5 {[%clk 0:01:33]} 17. Be3 {[%clk 0:02:05]}  Ng6 {[%clk 0:01:14]} 18. Bd3 {[%clk 0:02:00]}  b5 {[%clk 0:01:05]} 19. b3 {[%clk 0:01:59]}  Qa5 {[%clk 0:00:48]} 20. Nf5 {[%clk 0:01:53]}  Bxf5 {[%clk 0:00:44]} 21. Bxf5 {[%clk 0:01:54]}  bxc4 {[%clk 0:00:29]} 22. Bxg6 {[%clk 0:01:54]}  fxg6 {[%clk 0:00:29]} 23. bxc4 {[%clk 0:01:54]}  Nd7 {[%clk 0:00:25]} 24. Qc2 {[%clk 0:01:46]}  Ne5 {[%clk 0:00:23]} 25. Ne4 {[%clk 0:01:44]}  Qd8 {[%clk 0:00:18]} 26. f4 {[%clk 0:01:41]}  gxf4 {[%clk 0:00:18]} 27. Bxf4 {[%clk 0:01:42]}  Rb2 {[%clk 0:00:18]} 28. Qd1 {[%clk 0:01:30]}  Rf8 {[%clk 0:00:16]} 29. Rc2 {[%clk 0:01:26]}  Rxc2 {[%clk 0:00:13]} 30. Qxc2 {[%clk 0:01:27]}  g5 {[%clk 0:00:14]} 31. Bxe5 {[%clk 0:01:24]}  Rxf1+ {[%clk 0:00:15]} 32. Kxf1 {[%clk 0:01:24]}  Bxe5 {[%clk 0:00:15]} 33. Qf2 {[%clk 0:01:24]}  Qd7 {[%clk 0:00:14]} 34. g4 {[%clk 0:01:19]}  Qa4 {[%clk 0:00:13]} 35. Qe2 {[%clk 0:01:17]}  Qb4 {[%clk 0:00:13]} 36. Kg2 {[%clk 0:01:17]}  Qb1 {[%clk 0:00:13]} 37. Nxc5 {[%clk 0:01:01]}  dxc5 {[%clk 0:00:13]} 38. Qxe5 {[%clk 0:01:01]}  Qxa2+ {[%clk 0:00:13]} 39. Kf3 {[%clk 0:01:01]}  Qb3+ {[%clk 0:00:13]} 40. Ke4 {[%clk 0:00:58]}  Qxc4+ {[%clk 0:00:13]} 41. Kf5 {[%clk 0:00:58]}  Qd3+ {[%clk 0:00:12]} 42. Kf6 {[%clk 0:00:55]}  Qf3+ {[%clk 0:00:04]} 43. Kg6 {[%clk 0:00:46]}  Qf7+ {[%clk 0:00:04]} 44. Kxh6 {[%clk 0:00:47]}  Qh7+ {[%clk 0:00:05]} 45. Kxg5 {[%clk 0:00:47]}  Qg7+ {[%clk 0:00:05]} 46. Kf5 {[%clk 0:00:47]}  Qxe5+ {[%clk 0:00:03]} 47. Kxe5 {[%clk 0:00:48]}  Kf7 {[%clk 0:00:04]} 48. g5 {[%clk 0:00:47]}  a5 {[%clk 0:00:04]} 49. d6 {[%clk 0:00:47]}  a4 {[%clk 0:00:04]} 50. g6+ {[%clk 0:00:48]}  Kxg6 {[%clk 0:00:02]} 51. d7 {[%clk 0:00:48]} 1-0

[Event "January 9 Late 2024"]
[Site "https://www.chess.com"]
[Date "2024.01.09"]
[Round "5"]
[White "Seemann, Jakub"]
[Black "Espinoza Palomino, Willyam"]
[Result "1-0"]
[Board "83"]
[TimeControl "180+1"]
[WhiteFideId "21874697"]
[BlackFideId "3804852"]
[WhiteElo "2818"]
[BlackElo "2518"]
[WhiteTeam "POL"]
[BlackTeam "PER"]
[WhiteClock "0:01:18"]
[BlackClock "0:00:03"]

1. c4 {[%clk 0:02:42]}  e5 {[%clk 0:02:58]} 2. Nc3 {[%clk 0:02:40]}  Nf6 {[%clk 0:02:59]} 3. e3 {[%clk 0:02:40]}  d5 {[%clk 0:02:59]} 4. cxd5 {[%clk 0:02:41]}  Nxd5 {[%clk 0:03:00]} 5. Nf3 {[%clk 0:02:41]}  Nxc3 {[%clk 0:02:58]} 6. bxc3 {[%clk 0:02:41]}  Bd6 {[%clk 0:02:59]} 7. d4 {[%clk 0:02:41]}  exd4 {[%clk 0:02:59]} 8. cxd4 {[%clk 0:02:41]}  O-O {[%clk 0:02:59]} 9. Bd3 {[%clk 0:02:41]}  Nd7 {[%clk 0:02:55]} 10. O-O {[%clk 0:02:41]}  Re8 {[%clk 0:02:45]} 11. h3 {[%clk 0:02:41]}  Nf6 {[%clk 0:02:44]} 12. Bb2 {[%clk 0:02:41]}  c6 {[%clk 0:02:40]} 13. Qc2 {[%clk 0:02:42]}  h6 {[%clk 0:02:39]} 14. Rfc1 {[%clk 0:02:41]}  Be6 {[%clk 0:02:32]} 15. a4 {[%clk 0:02:41]}  Nd5 {[%clk 0:02:25]} 16. Bf5 {[%clk 0:02:35]}  Nb4 {[%clk 0:02:22]} 17. Qb1 {[%clk 0:02:36]}  Bxf5 {[%clk 0:02:16]} 18. Qxf5 {[%clk 0:02:37]}  Qe7 {[%clk 0:02:13]} 19. a5 {[%clk 0:02:25]}  Qe6 {[%clk 0:02:09]} 20. Qb1 {[%clk 0:02:17]}  Rab8 {[%clk 0:01:51]} 21. Ba3 {[%clk 0:02:17]}  Nd5 {[%clk 0:01:47]} 22. Bxd6 {[%clk 0:02:17]}  Qxd6 {[%clk 0:01:48]} 23. Ne5 {[%clk 0:02:17]}  f6 {[%clk 0:01:41]} 24. Nc4 {[%clk 0:02:17]}  Qe7 {[%clk 0:01:38]} 25. Qb3 {[%clk 0:02:14]}  Kh8 {[%clk 0:01:35]} 26. Re1 {[%clk 0:02:08]}  Qb4 {[%clk 0:01:29]} 27. Qd3 {[%clk 0:02:08]}  Qc3 {[%clk 0:01:21]} 28. Qe2 {[%clk 0:02:04]}  Nf4 {[%clk 0:01:14]} 29. Qa2 {[%clk 0:01:56]}  Nd3 {[%clk 0:01:08]} 30. Red1 {[%clk 0:01:54]}  Rbd8 {[%clk 0:00:33]} 31. Rab1 {[%clk 0:01:45]}  Rd7 {[%clk 0:00:22]} 32. Qa4 {[%clk 0:01:18]}  Rd6 {[%clk 0:00:03]} 1-0

[Event "January 9 Late 2024"]
[Site "https://www.chess.com"]
[Date "2024.01.09"]
[Round "5"]
[White "Petre, Nad-Titus"]
[Black "Chirilov, James A"]
[Result "0-1"]
[Board "86"]
[TimeControl "180+1"]
[WhiteFideId "1204165"]
[BlackFideId "30976677"]
[WhiteElo "2505"]
[BlackElo "2734"]
[WhiteTeam "ROU"]
[BlackTeam "USA"]
[WhiteClock "0:00:37"]
[BlackClock "0:00:43"]

1. Nf3 {[%clk 0:03:00]}  Nf6 {[%clk 0:02:59]} 2. c4 {[%clk 0:02:55]}  g6 {[%clk 0:02:58]} 3. b3 {[%clk 0:02:54]}  Bg7 {[%clk 0:02:59]} 4. Bb2 {[%clk 0:02:55]}  O-O {[%clk 0:02:59]} 5. e3 {[%clk 0:02:54]}  d6 {[%clk 0:02:59]} 6. d4 {[%clk 0:02:54]}  Nbd7 {[%clk 0:02:57]} 7. Nc3 {[%clk 0:02:49]}  e5 {[%clk 0:02:57]} 8. Be2 {[%clk 0:02:49]}  Re8 {[%clk 0:02:57]} 9. Qc2 {[%clk 0:02:49]}  e4 {[%clk 0:02:52]} 10. Nd2 {[%clk 0:02:49]}  Qe7 {[%clk 0:02:53]} 11. g4 {[%clk 0:02:48]}  h6 {[%clk 0:02:09]} 12. h4 {[%clk 0:02:48]}  g5 {[%clk 0:02:10]} 13. hxg5 {[%clk 0:02:49]}  hxg5 {[%clk 0:02:10]} 14. O-O-O {[%clk 0:02:49]}  Nf8 {[%clk 0:02:10]} 15. Kb1 {[%clk 0:02:43]}  Ng6 {[%clk 0:02:10]} 16. Rh5 {[%clk 0:02:28]}  Nxh5 {[%clk 0:02:07]} 17. gxh5 {[%clk 0:02:28]}  Nh4 {[%clk 0:02:05]} 18. Nd5 {[%clk 0:02:11]}  Qd8 {[%clk 0:02:01]} 19. Nxe4 {[%clk 0:02:12]}  Rxe4 {[%clk 0:02:00]} 20. Bd3 {[%clk 0:01:50]}  Re8 {[%clk 0:01:57]} 21. Rg1 {[%clk 0:01:47]}  c6 {[%clk 0:01:56]} 22. Nc3 {[%clk 0:01:46]}  d5 {[%clk 0:01:41]} 23. f4 {[%clk 0:01:38]}  g4 {[%clk 0:01:37]} 24. f5 {[%clk 0:01:35]}  Qg5 {[%clk 0:01:32]} 25. Bc1 {[%clk 0:01:35]}  Qxh5 {[%clk 0:01:24]} 26. cxd5 {[%clk 0:01:31]}  Nf3 {[%clk 0:01:20]} 27. Rf1 {[%clk 0:01:26]}  Bd7 {[%clk 0:00:57]} 28. dxc6 {[%clk 0:01:22]}  Bxc6 {[%clk 0:00:56]} 29. d5 {[%clk 0:01:14]}  Bd7 {[%clk 0:00:53]} 30. e4 {[%clk 0:01:07]}  Rac8 {[%clk 0:00:52]} 31. Bb2 {[%clk 0:01:05]}  Qh2 {[%clk 0:00:46]} 32. Rf2 {[%clk 0:00:49]}  Qg1+ {[%clk 0:00:46]} 33. Rf1 {[%clk 0:00:49]}  Qe3 {[%clk 0:00:44]} 34. Bc4 {[%clk 0:00:37]}  Nd2+ {[%clk 0:00:43]} 0-1

[Event "January 9 Late 2024"]
[Site "https://www.chess.com"]
[Date "2024.01.09"]
[Round "5"]
[White "Koellner, Ruben Gideon"]
[Black "Novikova, Galina"]
[Result "0-1"]
[Board "87"]
[TimeControl "180+1"]
[WhiteFideId "12993093"]
[BlackFideId "4157095"]
[WhiteElo "2734"]
[BlackElo "2504"]
[WhiteTeam "GER"]
[BlackTeam "RUS"]
[WhiteClock "0:00:14"]
[BlackClock "0:00:24"]

1. d4 {[%clk 0:02:59]}  e5 {[%clk 0:03:00]} 2. dxe5 {[%clk 0:02:59]}  d6 {[%clk 0:03:00]} 3. Nf3 {[%clk 0:02:59]}  Nc6 {[%clk 0:03:00]} 4. Bf4 {[%clk 0:02:56]}  Bg4 {[%clk 0:03:00]} 5. exd6 {[%clk 0:02:55]}  Qf6 {[%clk 0:03:01]} 6. Qc1 {[%clk 0:02:54]}  Bxd6 {[%clk 0:03:00]} 7. Bxd6 {[%clk 0:02:53]}  Qxd6 {[%clk 0:03:01]} 8. Qd2 {[%clk 0:02:48]}  Qxd2+ {[%clk 0:02:37]} 9. Nbxd2 {[%clk 0:02:46]}  Nb4 {[%clk 0:02:33]} 10. Kd1 {[%clk 0:02:41]}  O-O-O {[%clk 0:02:33]} 11. c3 {[%clk 0:02:37]}  Nc6 {[%clk 0:02:20]} 12. Kc2 {[%clk 0:02:37]}  Nf6 {[%clk 0:02:20]} 13. e3 {[%clk 0:02:32]}  Bf5+ {[%clk 0:02:19]} 14. Kc1 {[%clk 0:02:24]}  Ng4 {[%clk 0:02:18]} 15. Bc4 {[%clk 0:02:08]}  Nxf2 {[%clk 0:02:15]} 16. Rf1 {[%clk 0:02:08]}  Nd3+ {[%clk 0:02:16]} 17. Bxd3 {[%clk 0:02:05]}  Bxd3 {[%clk 0:02:17]} 18. Re1 {[%clk 0:02:05]}  f6 {[%clk 0:02:14]} 19. b3 {[%clk 0:02:01]}  Rhe8 {[%clk 0:02:08]} 20. Kb2 {[%clk 0:02:01]}  Be4 {[%clk 0:02:04]} 21. Nxe4 {[%clk 0:01:40]}  Rxe4 {[%clk 0:02:04]} 22. Re2 {[%clk 0:01:40]}  Rde8 {[%clk 0:01:59]} 23. Rae1 {[%clk 0:01:40]}  Ne5 {[%clk 0:02:00]} 24. Nxe5 {[%clk 0:01:38]}  R8xe5 {[%clk 0:02:01]} 25. Kc2 {[%clk 0:01:38]}  c5 {[%clk 0:01:54]} 26. Kd3 {[%clk 0:01:37]}  f5 {[%clk 0:01:45]} 27. Rf1 {[%clk 0:01:34]}  g6 {[%clk 0:01:45]} 28. Rf3 {[%clk 0:01:30]}  b5 {[%clk 0:01:37]} 29. Re1 {[%clk 0:01:15]}  Kc7 {[%clk 0:01:16]} 30. Ke2 {[%clk 0:00:59]}  a5 {[%clk 0:01:01]} 31. Kf2 {[%clk 0:00:55]}  Rd5 {[%clk 0:00:58]} 32. Ke2 {[%clk 0:00:53]}  c4 {[%clk 0:00:55]} 33. Rd1 {[%clk 0:00:42]}  Rde5 {[%clk 0:00:49]} 34. Rd4 {[%clk 0:00:37]}  cxb3 {[%clk 0:00:36]} 35. axb3 {[%clk 0:00:38]}  b4 {[%clk 0:00:33]} 36. Rxe4 {[%clk 0:00:12]}  Rxe4 {[%clk 0:00:33]} 37. Kd3 {[%clk 0:00:08]}  bxc3 {[%clk 0:00:31]} 38. Kxc3 {[%clk 0:00:08]}  Kc6 {[%clk 0:00:32]} 39. Kd3 {[%clk 0:00:08]}  Kc5 {[%clk 0:00:32]} 40. Rf1 {[%clk 0:00:08]}  Kb4 {[%clk 0:00:33]} 41. Ra1 {[%clk 0:00:07]}  Re7 {[%clk 0:00:28]} 42. Ra4+ {[%clk 0:00:07]}  Kb5 {[%clk 0:00:28]} 43. Rd4 {[%clk 0:00:07]}  Rc7 {[%clk 0:00:27]} 44. h3 {[%clk 0:00:05]}  Re7 {[%clk 0:00:20]} 45. g3 {[%clk 0:00:04]}  Rc7 {[%clk 0:00:20]} 46. h4 {[%clk 0:00:04]}  Re7 {[%clk 0:00:21]} 47. Rd5+ {[%clk 0:00:03]}  Kb4 {[%clk 0:00:21]} 48. Kd4 {[%clk 0:00:03]}  Ra7 {[%clk 0:00:20]} 49. Rd8 {[%clk 0:00:01]}  Kxb3 {[%clk 0:00:20]} 50. Rb8+ {[%clk 0:00:02]}  Kc2 {[%clk 0:00:20]} 51. Rc8+ {[%clk 0:00:02]}  Kb2 {[%clk 0:00:20]} 52. Rb8+ {[%clk 0:00:02]}  Kc2 {[%clk 0:00:20]} 53. Rc8+ {[%clk 0:00:03]}  Kd2 {[%clk 0:00:21]} 54. Rb8 {[%clk 0:00:03]}  a4 {[%clk 0:00:22]} 55. Rb2+ {[%clk 0:00:02]}  Kc1 {[%clk 0:00:21]} 56. Ra2 {[%clk 0:00:02]}  a3 {[%clk 0:00:20]} 57. Kc3 {[%clk 0:00:02]}  Kb1 {[%clk 0:00:20]} 58. Kb3 {[%clk 0:00:01]}  Rb7+ {[%clk 0:00:19]} 59. Kxa3 {[%clk 0:00:02]}  Ra7+ {[%clk 0:00:20]} 60. Kb3 {[%clk 0:00:03]}  Rxa2 {[%clk 0:00:21]} 61. Kc3 {[%clk 0:00:03]}  Rg2 {[%clk 0:00:21]} 62. e4 {[%clk 0:00:03]}  fxe4 {[%clk 0:00:20]} 63. Kd4 {[%clk 0:00:03]}  Rxg3 {[%clk 0:00:20]} 64. Kxe4 {[%clk 0:00:02]}  Rg4+ {[%clk 0:00:21]} 65. Ke5 {[%clk 0:00:03]}  Rxh4 {[%clk 0:00:22]} 66. Kf6 {[%clk 0:00:04]}  Rb4 {[%clk 0:00:20]} 67. Kg7 {[%clk 0:00:05]}  g5 {[%clk 0:00:21]} 68. Kh6 {[%clk 0:00:04]}  g4 {[%clk 0:00:22]} 69. Kg7 {[%clk 0:00:05]}  g3 {[%clk 0:00:22]} 70. Kh6 {[%clk 0:00:06]}  g2 {[%clk 0:00:22]} 71. Kg7 {[%clk 0:00:07]}  h5 {[%clk 0:00:22]} 72. Kh6 {[%clk 0:00:08]}  h4 {[%clk 0:00:23]} 73. Kg6 {[%clk 0:00:08]}  h3 {[%clk 0:00:23]} 74. Kh5 {[%clk 0:00:09]}  h2 {[%clk 0:00:23]} 75. Kg5 {[%clk 0:00:10]}  g1=Q+ {[%clk 0:00:24]} 76. Kf5 {[%clk 0:00:11]}  Qf2+ {[%clk 0:00:23]} 77. Ke6 {[%clk 0:00:11]}  Re4+ {[%clk 0:00:23]} 78. Kd5 {[%clk 0:00:12]}  Qd4+ {[%clk 0:00:23]} 79. Kc6 {[%clk 0:00:13]}  Re6+ {[%clk 0:00:23]} 80. Kb7 {[%clk 0:00:13]}  Qd7+ {[%clk 0:00:23]} 81. Ka8 {[%clk 0:00:14]}  Re8# {[%clk 0:00:24]} 0-1

[Event "January 9 Late 2024"]
[Site "https://www.chess.com"]
[Date "2024.01.09"]
[Round "5"]
[White "Manolache, Marius"]
[Black "Goncalves, Davi Sulzbacher"]
[Result "1-0"]
[Board "92"]
[TimeControl "180+1"]
[WhiteFideId "1201530"]
[BlackFideId "2154510"]
[WhiteElo "2690"]
[BlackElo "2496"]
[WhiteTeam "ROU"]
[BlackTeam "BRA"]
[WhiteClock "0:01:30"]
[BlackClock "0:00:01"]

1. d4 {[%clk 0:03:00]}  Nf6 {[%clk 0:02:59]} 2. Nf3 {[%clk 0:03:00]}  g6 {[%clk 0:02:59]} 3. Nc3 {[%clk 0:02:59]}  d5 {[%clk 0:02:58]} 4. Bf4 {[%clk 0:02:59]}  Bg7 {[%clk 0:02:58]} 5. e3 {[%clk 0:02:59]}  O-O {[%clk 0:02:58]} 6. h4 {[%clk 0:03:00]}  Bg4 {[%clk 0:02:56]} 7. Be2 {[%clk 0:03:00]}  c5 {[%clk 0:02:55]} 8. Ne5 {[%clk 0:02:55]}  Bxe2 {[%clk 0:02:54]} 9. Qxe2 {[%clk 0:02:54]}  cxd4 {[%clk 0:02:46]} 10. exd4 {[%clk 0:02:54]}  Nc6 {[%clk 0:02:43]} 11. Nxc6 {[%clk 0:02:53]}  bxc6 {[%clk 0:02:43]} 12. Be5 {[%clk 0:02:52]}  Qb6 {[%clk 0:02:35]} 13. Rb1 {[%clk 0:02:45]}  c5 {[%clk 0:02:15]} 14. dxc5 {[%clk 0:02:34]}  Qxc5 {[%clk 0:02:14]} 15. Rd1 {[%clk 0:02:34]}  Rfd8 {[%clk 0:01:58]} 16. Bd4 {[%clk 0:02:33]}  Qb4 {[%clk 0:01:52]} 17. O-O {[%clk 0:02:26]}  e6 {[%clk 0:01:35]} 18. a3 {[%clk 0:02:16]}  Qe7 {[%clk 0:01:26]} 19. Rfe1 {[%clk 0:02:14]}  Nh5 {[%clk 0:01:05]} 20. Bxg7 {[%clk 0:02:11]}  Kxg7 {[%clk 0:01:02]} 21. Nxd5 {[%clk 0:02:00]}  Qxh4 {[%clk 0:00:52]} 22. Qe5+ {[%clk 0:02:00]}  Kg8 {[%clk 0:00:43]} 23. g3 {[%clk 0:01:59]}  Qg4 {[%clk 0:00:18]} 24. Ne7+ {[%clk 0:01:59]}  Kf8 {[%clk 0:00:19]} 25. Nc6 {[%clk 0:01:46]}  f6 {[%clk 0:00:14]} 26. Qc5+ {[%clk 0:01:39]}  Kg8 {[%clk 0:00:14]} 27. Rxd8+ {[%clk 0:01:33]}  Rxd8 {[%clk 0:00:13]} 28. Nxd8 {[%clk 0:01:33]}  Nxg3 {[%clk 0:00:12]} 29. fxg3 {[%clk 0:01:32]}  Qxg3+ {[%clk 0:00:12]} 30. Kf1 {[%clk 0:01:32]}  Qh3+ {[%clk 0:00:07]} 31. Ke2 {[%clk 0:01:31]}  Qg4+ {[%clk 0:00:04]} 32. Kd2 {[%clk 0:01:31]}  Qg5+ {[%clk 0:00:01]} 33. Qxg5 {[%clk 0:01:30]} 1-0

[Event "January 9 Late 2024"]
[Site "https://www.chess.com"]
[Date "2024.01.09"]
[Round "5"]
[White "Al-Tarboush, Ward"]
[Black "Czerw, Dawid"]
[Result "1-0"]
[Board "101"]
[TimeControl "180+1"]
[WhiteFideId "7601450"]
[BlackFideId "1145746"]
[WhiteElo "2618"]
[BlackElo "2478"]
[WhiteTeam "NOR"]
[BlackTeam "POL"]
[WhiteClock "0:01:07"]
[BlackClock "0:00:00"]

1. e4 {[%clk 0:03:00]}  c5 {[%clk 0:02:59]} 2. Nf3 {[%clk 0:03:00]}  Nc6 {[%clk 0:03:00]} 3. d4 {[%clk 0:03:01]}  cxd4 {[%clk 0:03:01]} 4. Nxd4 {[%clk 0:03:02]}  Nf6 {[%clk 0:03:01]} 5. Nc3 {[%clk 0:03:02]}  e5 {[%clk 0:03:02]} 6. Ndb5 {[%clk 0:03:02]}  d6 {[%clk 0:03:02]} 7. Bg5 {[%clk 0:03:02]}  a6 {[%clk 0:03:01]} 8. Na3 {[%clk 0:03:03]}  b5 {[%clk 0:03:00]} 9. Nd5 {[%clk 0:03:03]}  Be7 {[%clk 0:03:01]} 10. Bxf6 {[%clk 0:03:02]}  Bxf6 {[%clk 0:03:01]} 11. c3 {[%clk 0:03:03]}  O-O {[%clk 0:03:01]} 12. Nc2 {[%clk 0:03:03]}  Be6 {[%clk 0:03:02]} 13. a4 {[%clk 0:02:45]}  Bxd5 {[%clk 0:02:59]} 14. exd5 {[%clk 0:02:41]}  Ne7 {[%clk 0:02:58]} 15. axb5 {[%clk 0:02:41]}  axb5 {[%clk 0:02:51]} 16. Rxa8 {[%clk 0:02:41]}  Qxa8 {[%clk 0:02:51]} 17. Nb4 {[%clk 0:02:41]}  Qb7 {[%clk 0:02:23]} 18. Be2 {[%clk 0:02:40]}  Bg5 {[%clk 0:02:20]} 19. O-O {[%clk 0:02:40]}  f5 {[%clk 0:02:20]} 20. Qd3 {[%clk 0:02:40]}  Rb8 {[%clk 0:02:18]} 21. f3 {[%clk 0:02:16]}  Qb6+ {[%clk 0:01:56]} 22. Kh1 {[%clk 0:02:16]}  Be3 {[%clk 0:01:57]} 23. Ra1 {[%clk 0:02:09]}  Bc5 {[%clk 0:01:53]} 24. g3 {[%clk 0:01:52]}  Bxb4 {[%clk 0:01:34]} 25. cxb4 {[%clk 0:01:53]}  Qd4 {[%clk 0:01:34]} 26. Qxd4 {[%clk 0:01:49]}  exd4 {[%clk 0:01:33]} 27. Rd1 {[%clk 0:01:47]}  Rc8 {[%clk 0:01:25]} 28. Rxd4 {[%clk 0:01:40]}  Rc2 {[%clk 0:01:12]} 29. Bxb5 {[%clk 0:01:38]}  Rxb2 {[%clk 0:01:11]} 30. Bc6 {[%clk 0:01:37]}  g5 {[%clk 0:00:51]} 31. b5 {[%clk 0:01:36]}  Kf7 {[%clk 0:00:51]} 32. Ra4 {[%clk 0:01:34]}  Kf6 {[%clk 0:00:46]} 33. Ra6 {[%clk 0:01:33]}  Ng6 {[%clk 0:00:41]} 34. b6 {[%clk 0:01:29]}  Ne5 {[%clk 0:00:41]} 35. Kg1 {[%clk 0:01:21]}  Nxf3+ {[%clk 0:00:36]} 36. Kf1 {[%clk 0:01:20]}  Ke5 {[%clk 0:00:08]} 37. b7 {[%clk 0:01:18]}  Ke4 {[%clk 0:00:06]} 38. Ra8 {[%clk 0:01:14]}  Rb1+ {[%clk 0:00:01]} 39. Ke2 {[%clk 0:01:07]}  Rb2+ {[%clk 0:00:00]} 40. Kd1 {[%clk 0:01:07]} 1-0

[Event "January 9 Late 2024"]
[Site "https://www.chess.com"]
[Date "2024.01.09"]
[Round "5"]
[White "Fiedorek, Michal"]
[Black "Bjelobrk, Igor"]
[Result "1-0"]
[Board "102"]
[TimeControl "180+1"]
[WhiteFideId "1199528"]
[BlackFideId "4300726"]
[WhiteElo "2470"]
[BlackElo "2616"]
[WhiteTeam "POL"]
[BlackTeam "AUS"]
[WhiteClock "0:01:27"]
[BlackClock "0:00:57"]

1. e4 {[%clk 0:02:47]}  e6 {[%clk 0:02:52]} 2. d4 {[%clk 0:02:47]}  d5 {[%clk 0:02:42]} 3. e5 {[%clk 0:02:47]}  c5 {[%clk 0:02:35]} 4. c3 {[%clk 0:02:47]}  Nc6 {[%clk 0:02:34]} 5. Nf3 {[%clk 0:02:47]}  Qb6 {[%clk 0:02:34]} 6. Bd3 {[%clk 0:02:47]}  cxd4 {[%clk 0:02:30]} 7. O-O {[%clk 0:02:47]}  Bd7 {[%clk 0:02:30]} 8. Nbd2 {[%clk 0:02:46]}  Nge7 {[%clk 0:02:28]} 9. Nb3 {[%clk 0:02:45]}  dxc3 {[%clk 0:02:19]} 10. bxc3 {[%clk 0:02:46]}  Ng6 {[%clk 0:02:19]} 11. Re1 {[%clk 0:02:47]}  Be7 {[%clk 0:02:10]} 12. Rb1 {[%clk 0:02:45]}  Qc7 {[%clk 0:02:08]} 13. Qe2 {[%clk 0:02:45]}  O-O {[%clk 0:02:06]} 14. Nbd4 {[%clk 0:02:45]}  Na5 {[%clk 0:01:41]} 15. h4 {[%clk 0:02:29]}  Nxh4 {[%clk 0:01:33]} 16. Nxh4 {[%clk 0:02:11]}  Bxh4 {[%clk 0:01:34]} 17. Qh5 {[%clk 0:02:11]}  Bxf2+ {[%clk 0:01:32]} 18. Kxf2 {[%clk 0:02:09]}  g6 {[%clk 0:01:32]} 19. Qh6 {[%clk 0:01:30]}  Qxc3 {[%clk 0:01:29]} 20. Rh1 {[%clk 0:01:28]}  Qxd4+ {[%clk 0:00:59]} 21. Be3 {[%clk 0:01:27]}  Qxe5 {[%clk 0:00:57]} 22. Qxh7# {[%clk 0:01:27]} 1-0